Cogmind - Beta 15 *** ADVENTURER MODE // 2025.07.25 @ 17:44:26 Player: Panzer Result: Destroyed by S-10 Pest with Light Assault Rifle Performance ------------- Evolutions (1) 500 Regions Visited (2) 400 Robots Destroyed (27) 135 Value Destroyed (587) 587 Prototype IDs (0) 0 Alien Tech Used (0) 0 Bonus (0) 0 TOTAL SCORE: 1622 Bonus ------- None Cogmind --------- Core Integrity 0/400 Matter 144/300 Energy 100/100 System Corruption 0% Temperature Cool (0) Movement Core (1350) Ox26 Location -9/Materials Parts ------- > --- POWER (2) -------- (None) > --- PROPULSION (3) --- (None) > --- UTILITY (2) ------ Huge Storage Unit Improved Targeting Computer > --- WEAPON (2) ------- (None) > --- INVENTORY (25) --- Light Treads Improved Treads Peak State ------------ > --- POWER ------------ Improved Ion Engine > --- PROPULSION ------- Aluminum Leg Aluminum Leg > --- UTILITY ---------- Improved Targeting Computer Improved Targeting Computer > --- WEAPON ----------- Autogun Autogun > --- INVENTORY -------- Ion Engine Small Storage Unit Assault Rifle Assault Rifle [Rating: 12] Favorites ----------- Power Improved Ion Engine Engine Improved Ion Engine Propulsion Aluminum Leg Leg Aluminum Leg Flight Unit Flight Unit Utility Improved Targeting Computer Storage Huge Storage Unit Processor Improved Targeting Computer Weapon Particle Cannon Energy Cannon Particle Cannon Ballistic Gun Autogun Launcher Mini Grenade Launcher Build | -11 -10 -9 ------- Run | Yrd Mat Mat Slots Evolved 2 | . . 2 Power 1 | . . 1 Propulsion 1 | . . 1 Utility . | . . . Weapon . | . . . Parts Attached 17 | 6 7 4 Power 2 | 1 1 . Engine 2 | 1 1 . Core . | . . . Reactor . | . . . Propulsion 3 | 2 . 1 Treads . | . . . Leg 2 | 2 . . Wheel . | . . . Hover . | . . . Flight 1 | . . 1 Utility 5 | 1 3 1 Device . | . . . Storage 3 | 1 1 1 Processor 2 | . 2 . Hackware . | . . . Protection . | . . . Artifact . | . . . Weapon 7 | 2 3 2 Energy Gun . | . . . Energy Cannon 2 | . . 2 Ballistic Gun 4 | 2 2 . Ballistic Cannon . | . . . Launcher 1 | . 1 . Special Weapon . | . . . Impact Weapon . | . . . Slashing Weapon . | . . . Piercing Weapon . | . . . Special Melee Weapon . | . . . Unidentified Prototypes . | . . . Parts Lost 6 | . . 6 Power 2 | . . 2 Propulsion 2 | . . 2 Utility . | . . . Weapon 2 | . . 2 Highest Loss Streak 5 | . . 5 To Critical Strikes . | . . . Average Backups 2 | . 2 2 Power . | . . . Propulsion . | . . . Utility . | . . . Weapon 1 | . 1 . Tool/Special . | . . . Unused Backups 1 | . . 1 Power . | . . . Propulsion 1 | . . 1 Utility . | . . . Weapon . | . . . Tool/Special . | . . . Average Slot Usage (%) 85 | . 96 75 Engine 15 | . 14 16 Leg 21 | . 28 16 Storage 9 | . 7 11 Processor 14 | . 17 11 Energy Cannon 8 | . . 15 Ballistic Gun 12 | . 23 2 Launcher 3 | . 4 2 Peak Build Rating 12 | 6 12 12 Average Rating 10 | 3 10 10 On Entrance 5 | . 6 11 Naked Turns . | . . . Heaviest Build 100 | 14 21 100 Greatest Support 20 | 20 20 20 Greatest Overweight (x) 33 | . 1 33 Average Overweight (x) 1 | . . 3 Largest Inventory Capacity 25 | 8 10 25 Average Capacity 14 | 6 7 21 Most Carried 8 | 5 5 8 Average Carried 2 | 1 2 2 Final Capacity 25 | 8 10 25 Final Carried 3 | . 3 2 Class Distribution -------------------- 100% | Mutant Dominant Class ---------------- Mutant | -10/Materials Mutant | -9/Materials Resources | -11 -10 -9 ----------- Run | Yrd Mat Mat Matter Collected 465 | 236 226 3 Remotely . | . . . Salvage Created 557 | . 249 308 Parts 51 | . 19 32 Haulers Intercepted . | . . . Recyclers Shooed 1 | . . 1 Parts Field Recycled . | . . . Retrieved Matter . | . . . Parts Self-Destructed . | . . . Prevented . | . . . Kills | -11 -10 -9 ------- Run | Yrd Mat Mat Combat Hostiles Destroyed 19 | . 6 13 Guns 6 | . 5 1 Cannons 6 | . . 6 AOE 7 | . 1 6 Classes Destroyed 6 | . 3 3 Builder 1 | . 1 . Tunneler 1 | . . 1 Watcher 6 | . 2 4 Swarmer 10 | . . 10 Grunt 6 | . 6 . Sentry 3 | . . 3 Best Kill Streak 6 | . 3 6 Combat Bots Only 4 | . 3 4 Max Kills in Single Turn 2 | . 2 2 Gunslinging 1 | . 1 . Exploded 2 | . 1 2 Melee . | . . . Uniques/NPCs Destroyed . | . . . Combat | -11 -10 -9 -------- Run | Yrd Mat Mat Hostile Shots Fired 144 | . 18 126 Missed 26 | . 6 20 Hits 118 | . 12 106 Projectile 118 | . 12 106 Critical Strikes 2 | . . 2 Damage Taken 1111 | . 173 938 Core 458 | . 52 406 Absorbed by Shields . | . . . Ignored by Resistances 328 | . 50 278 Core Remaining (%) 89 | 100 79 . Volleys Fired 39 | . 16 23 Largest 2 | . 2 2 Hottest 136 | . 53 136 Shots Fired 77 | . 32 45 Gun 37 | . 30 7 Cannon 31 | . . 31 Launcher 9 | . 2 7 Special . | . . . Kinetic 37 | . 30 7 Thermal 31 | . . 31 Explosive 9 | . 2 7 Electromagnetic . | . . . Robot Hit Streak 22 | . 22 14 Robot Miss Streak 5 | . 1 5 Penetration Max . | . . . Secondary Targets 2 | . 2 . Max Gunslinging Chain 1 | . 1 . Shots Hit Robots 51 | . 28 23 Core Hits 32 | . 10 22 Critical Kills 1 | . . 1 Critical Parts Destroyed 2 | . 2 . Critical Strikes 3 | . 2 1 Destroy 3 | . 2 1 Melee Attacks . | . . . Impact . | . . . Slashing . | . . . Piercing . | . . . Sneak Attacks . | . . . Combat Hostiles . | . . . Follow-up Attacks . | . . . Damage Inflicted 1427 | . 539 888 Guns 449 | . 389 60 Cannons 348 | . . 348 Explosions 630 | . 150 480 Melee . | . . . Ramming . | . . . Kinetic 449 | . 389 60 Thermal 348 | . . 348 Explosive 630 | . 150 480 Electromagnetic . | . . . Impact . | . . . Slashing . | . . . Piercing . | . . . Highest Corruption . | . . . Average Corruption . | . . . Corruption Purged . | . . . Corruption Blocked . | . . . Overload Shots . | . . . Overflow Damage 54 | . . 54 Projectiles . | . . . Explosions 54 | . . 54 Melee . | . . . Knockbacks . | . . . Impact . | . . . Kinetic . | . . . Secondary . | . . . Self-Inflicted Damage 204 | . 74 130 Shots 7 | . 2 5 Rammed . | . . . Targets Rammed . | . . . Kicked . | . . . Crushed . | . . . Highest Temperature 630 | . 30 630 Average Temperature 160 | . 11 202 Received Heat Transfer 240 | . 72 168 Effects 17 | . . 17 Shutdowns 3 | . . 3 Energy Bleed 2 | . . 2 Interference 3 | . . 3 Matter Decay 2 | . . 2 Short Circuit 1 | . . 1 Damage (major) 5 | . . 5 Damage (core) 1 | . . 1 Siege Activations . | . . . Martial Activations . | . . . Shielding Activations . | . . . Robots Disrupted . | . . . Combat Hostiles . | . . . Robots Corrupted . | . . . Combat Hostiles . | . . . Parts Fried . | . . . Impact Corruptions . | . . . Robots Melted . | . . . Combat Hostiles . | . . . Parts Melted 2 | . . 2 Heat Transferred 629 | . . 629 Parts Sabotaged . | . . . Parts Stolen . | . . . Parts Stripped . | . . . Power Chain Reactions . | . . . Alert | -11 -10 -9 ------- Run | Yrd Mat Mat Maximum Alert Level 1 | . . 1 Low Security (%) 93 | 100 100 87 Level 1 6 | . . 12 Level 2 . | . . . Level 3 . | . . . Level 4 . | . . . Level 5 . | . . . High Security . | . . . Max Security . | . . . Peak Influence 221 | . 74 221 Initial 13 | . . 13 Average 89 | . 28 147 Influence Increases 615 | . 184 431 Destroy 0b10 Robot/C 380 | . 120 260 Destroy 0b10 Robot/NC 40 | . 15 25 Destroy Leader 92 | . 24 68 Successful Hack 7 | . 3 4 Disable Machine 36 | . 9 27 Destroy Structure 60 | . 13 47 Influence Decreases 481 | . 147 334 Entered New Map 24 | . . 24 Time Decay 397 | . 147 250 Lost Part 60 | . . 60 Squads Dispatched 2 | . 2 . Investigation 2 | . 2 . Extermination . | . . . Reinforcement . | . . . Assault . | . . . Garrison . | . . . Intercept . | . . . Searches Triggered . | . . . Construction Impeded . | . . . Haulers Reinforced . | . . . Active Scanning Responses . | . . . Cargo Convoy Interrupts . | . . . Stealth | -11 -10 -9 --------- Run | Yrd Mat Mat Distress Signals 1 | . . 1 Communications Jammed . | . . . Distress Signals . | . . . Times Spotted 28 | . 10 18 Peak Tracking Total 4 | . 3 4 Tactical Retreats . | . . . Traps | -11 -10 -9 ------- Run | Yrd Mat Mat Traps Triggered 1 | . 1 . Indirectly . | . . . Trap Hack Attempts . | . . . Triggered . | . . . Disarmed . | . . . Reprogrammed . | . . . Reused . | . . . Traps Extracted . | . . . Installed . | . . . Triggered . | . . . Machines | -11 -10 -9 ---------- Run | Yrd Mat Mat Machines Disabled 4 | . 1 3 Max in Single Turn 2 | . 1 2 Machines Repaired . | . . . Machines Dismantled . | . . . Machines Sabotaged . | . . . Overloaded Fab Kills . | . . . Hacking | -11 -10 -9 --------- Run | Yrd Mat Mat Machines Accessed 6 | . 3 3 Terminals 5 | . 3 2 Fabricators . | . . . Repair Stations . | . . . Recycling Units . | . . . Scanalyzers 1 | . . 1 Garrison Access . | . . . Total Hacks 18 | . 10 8 Successful 14 | . 8 6 Failed 4 | . 2 2 Catastrophic . | . . . Database Lockouts . | . . . Manual . | . . . Terminals 15 | . 10 5 Fabricators . | . . . Repair Stations . | . . . Recycling Units . | . . . Scanalyzers 3 | . . 3 Garrison Access . | . . . Terminal Hacks 11 | . 8 3 Record 4 | . 3 1 Alert Level 2 | . 2 . Locate Traps 1 | . 1 . Zone Layout 4 | . 2 2 Fabricator Hacks . | . . . Repair Station Hacks . | . . . Recycling Unit Hacks . | . . . Scanalyzer 3 | . . 3 Insert Component 2 | . . 2 Analyze 1 | . . 1 Garrison Access Hacks . | . . . Unauthorized Hacks . | . . . Terminals . | . . . Fabricators . | . . . Repair Stations . | . . . Recycling Units . | . . . Scanalyzers . | . . . Garrison Access . | . . . Data Cores Recovered . | . . . Used . | . . . Hacking Detections 5 | . 3 2 Full Trace Events 2 | . 2 . Feedback Events . | . . . Feedback Blocked . | . . . Robot Schematics Acquired . | . . . Robots Built . | . . . Authchips . | . . . Time . | . . . Total Robot Build Rating . | . . . Part Schematics Acquired 1 | . . 1 Parts Built . | . . . Authchips . | . . . Time . | . . . Total Part Build Rating . | . . . Parts Repaired . | . . . Time . | . . . Parts Recycled . | . . . Recycled Matter . | . . . Retrieved Matter . | . . . Retrieved Components . | . . . Parts Scanalyzed 1 | . . 1 Part Schematics Acquired 1 | . . 1 Parts Damaged . | . . . Bothacking | -11 -10 -9 ------------ Run | Yrd Mat Mat Used RIF Installer . | . . . Robots Hacked . | . . . Non-combat . | . . . Combat . | . . . Robot Hacks Applied . | . . . Relay Couplers Released . | . . . Fabnet Peak Effective % . | . . . Robots Rewired . | . . . Allies Hacked . | . . . Hacks Repelled . | . . . Allies | -11 -10 -9 -------- Run | Yrd Mat Mat Total Allies . | . . . Largest Group . | . . . Highest-Rated Group . | . . . Highest-Rated Ally . | . . . Total Orders . | . . . Ally Attacks . | . . . Total Damage . | . . . Kills . | . . . Allies Corrupted . | . . . Allies Melted . | . . . Intel | -11 -10 -9 ------- Run | Yrd Mat Mat Active Infowar (turns) . | . . . Robot Analysis Total . | . . . Derelict Logs Recovered . | . . . Drone Launches . | . . . Drone Recoveries . | . . . Exploration | -11 -10 -9 ------------- Run | Yrd Mat Mat Turns Passed 963 | 55 404 504 Spaces Moved 427 | 59 255 113 Core 42 | 38 . 4 Treads . | . . . Legs 385 | 21 255 109 Wheels . | . . . Hover . | . . . Flight . | . . . Fastest Speed 50 | 50 120 190 Average Speed 190 | 74 135 375 Slowest Speed 1700 | 120 190 1700 Overloaded Moves . | . . . Propulsion Burnouts . | . . . Robots Hopped . | . . . Potential Cave-ins . | . . . Cave-ins Triggered . | . . . Exploration Rate (%) 20 | 4 39 17 Regions Visited 2 Branch Regions . Pre-discovered Areas . | . . . Known Exits Taken . | . . . Unknown Exits Taken 2 | 1 1 . Scrap Searched . | . . . Spaces Dug . | . . . Terrain Destroyed 58 | . 14 44 Melee . | . . . Projectile . | . . . AOE 58 | . 14 44 Terrain Rammed . | . . . Walls Destroyed . | . . . Machines Disabled . | . . . Actions | -11 -10 -9 --------- Run | Yrd Mat Mat Total 515 | 69 288 158 Wait . | . . . Move 425 | 58 254 113 Hop . | . . . Pick Up 19 | 5 7 7 Fast Attach 1 | 1 . . Attach 13 | 5 4 4 Detach 5 | . 2 3 Swap 4 | . 3 1 Drop 9 | . 2 7 Fire 39 | . 16 23 Melee . | . . . Ram . | . . . Kick . | . . . Crush . | . . . Escape Stasis . | . . . Rewire . | . . . Trap . | . . . Miscellaneous . | . . . Route ------- -11/Scrapyard -10/Materials -9/Materials (discovered 1 exit: [*Mat]) History --------- Turn | Location | Event 22 | -11/Scrapyard | Discovered new exit (range 14) 56 | -11/Scrapyard | Entered Materials 57 | -10/Materials | Met a group of wandering Federalists 313 | -10/Materials | Build established: Mutant 435 | -10/Materials | Discovered new exit (range 13) 460 | -10/Materials | Entered another Materials area 460 | -9/Materials | Evolved 2 slots: Power x1, Propulsion x1 691 | -9/Materials | Discovered new exit (range 15) 912 | -9/Materials | Core integrity fell below 50% 950 | -9/Materials | Core integrity fell below 20% 964 | -9/Materials | Destroyed by S-10 Pest with Light Assault Rifle Last Messages --------------- Overheating: Energy bleed (-103). Overheating: System interference. Imp. Targeting Computer temporarily disabled. K-01 Serf collects debris. Overheating: Energy bleed (-62). Ion Engine destroyed. K-01 Serf collects debris. Imp. Ion Engine destroyed. Broken Particle Cannon destroyed. K-01 Serf collects debris. R-06 Scavenger collects Flight Unit. Particle Cannon destroyed. K-01 Serf collects debris. R-06 Scavenger collects Flight Unit. R-06 Scavenger collects Terrain Scanner. K-01 Serf collects debris. R-06 Scavenger collects Lgt. Assault Rifle. K-01 Serf collects debris. M-13 Machinist repairs S-10 Pest Flight Unit. K-01 Serf collects debris. Map ----- +----------------------------------------------------+ | ??????????????????????????????????????????????? | | ??????????????????????????????????????????????? | | ??????????????????????????????????????????????? | | ??????????????????????????????????????????????? | | ??????????????????????????????????????????????? | | ??????????????????????????????????????????????? | | ??????????????????????????????????????????????? | | ??????????????????????????????????????????????? | | ??????????????????????????????????????????????? | | ??????????????????????????????????????????????? | | ??????????????????????????????????????????????? | | ??????????????????????????????????????????????? | | ?????????????????###??????????????????????????? | | ?????????????????# ??????????????????????????? | | ?????????????????? ??????????????????????????? | | ??????????????????! ??????????????????????????? | | ?????????????????? ?????????????????????????? | | ??????????????????? ????????#????????????????? | | ??????????????????? ??????? #????????????????? | | ?????????###########+####### ###??????????????? | | ?????????# *% !%!% # """????????? | | ?????????# < ** %!%!+ """????????? | | ?????????# =%%m %[* # !?????? | | ?????????####+#######=sg########??????????????? | | ??????????# #??# ####??????????????????? | | ??????????# #??# @ ## "??????????????????? | | ??????????# #??# ## ??????????????????? | | ??????????# "" #??# # ??????????????????? | | ??????????# S"" #??# ## ??????????????????? | | ??????????# "" #?## ####??????????????????? | | ############+#####?# ###??????????????????? | | # #?# #?????# [ ??????????????????? | | # ### ###???# [%= ??????????????????? | | # # #???# ! ??????????????????? | | # # ##### ###???????? ???????? | | # + T ####### ## ####### | | # # ### #?????# ## #?????# | | # # #?# #?????# ## #?????# | | # #######?# #?????# ## #?????# | | # #???????# #?????# ## #?????# | | ##########???????# ################# #?????# | | ??????????######## ## !]] #????# #?????# | | ??????????# # ## !]] #????# #?????#^ | | ??????????# """# ## [ ] #????# #?????# | | ??????????# """# # ][ #????# #?????# | | ??????????# """# + [ #????# #?????# | | ??????????# + # #????# #?????# | | ??????????# # # #???## ##????# | | ??????????######## # #??## ###### | | ????????????????## ############### | +----------------------------------------------------+ Best States ------------- Heat Dissipation 28 Energy Generation 17 Energy Capacity 415 Matter Stores 300 Matter Capacity 300 Sight Range 16 Terrain Scan Density 10 Resistance: KI 20 Resistance: TH 20 Resistance: EX 20 Resistance: EM 20 Resistance: I 20 Resistance: S 20 Resistance: P 20 Evasion (%) 55 Targeting Accuracy 12 Offensive Hacking 10 Item Schematics ----------------- Imp. Treads | -9/Materials | Scanalyzed Robot Schematics ------------------ None Fabricated ------------ Nothing Repaired ---------- Nothing Alien Tech Used ----------------- None Achievements -------------- Storm Trooper Challenges ------------ None Game ------ Seed MiningZhirovSplitter Manual? 0 Play Time 00:20:10 Cumulative 1.8 hours Start 2025.07.25 @ 17:21:33 End 2025.07.25 @ 17:44:26 Sessions 1 Manual Loads 0 Difficulty Adventurer Special Mode None Game No. 8 Rogue 5 Adventurer 3 Explorer 0 Win Type - Total 0 Types 0/0/0/0/0/0/0/0/0/0 Lore% 0 Gallery% 4 Achievement% 6 Wizard Run 0 Options --------- Layout 1 ASCII 0 Keyboard 0 Movement Mouse Keybinds 0 Fullscreen 2 Font 24/Smallcaps Map View 50x35 Zoom Use 0% Tactical HUD 0 Map Filters NONE Filters NONE Steam 1 RUN: 4796f6fa-dd04-464c-9f74-8752e9486174